fUST/lending_fUST_20250226
["ID","MTS","AMOUNT","RATE_DAILY","PERIOD"]
[354457072,1740517833346,-396.0,0.00044678,2]
[354457073,1740517833356,-150.0,0.00045047,2]
[354457074,1740517833365,-1964.0,0.00045047,2]
[354457075,1740517833375,-538.0,0.00045047,2]
[354457076,1740517833384,-2283.0,0.00045047,2]
[354457077,1740517833394,-194.8062777,0.00046232,30]
[354457078,1740517833404,-5235.0,0.00047091,14]
[354457079,1740517833415,-186.2028385,0.00047333,4]
[354457080,1740517833424,-291.92039377,0.00047348,120]
[354457081,1740517833433,-229.21559083,0.0004743,2]
[354457082,1740517833443,-396.0,0.00047678,2]
[354457083,1740517833453,-160.0,0.00047999,30]
[354457084,1740517833462,-500.0,0.00047999,120]
[354457085,1740517833473,-12616.49,0.00047999,120]
[354457086,1740517833483,-1000.0,0.00048,7]
[354457087,1740517833493,-24311.68507543,0.00048,120]
[354457088,1740517833503,-59016.85994527,0.00048,120]
[354457089,1740517833514,-1218.44999477,0.00048,120]
[354457090,1740517833524,-150.0,0.00048,90]
[354457091,1740517833533,-150.0,0.00048047,2]
[354457092,1740517833543,-1964.0,0.00048047,2]
[354457093,1740517833552,-538.0,0.00048047,2]
[354457094,1740517833562,-2283.0,0.00048047,2]
[354457095,1740517833572,-160.0,0.00048299,30]
[354457096,1740517833581,-173.98274009,0.00048299,2]
[354457097,1740517833591,-195.5220366,0.00048299,2]
[354457098,1740517833600,-18980.80441313,0.000483,120]
[354457099,1740517833610,-500.0,0.00048373,10]
[354457100,1740517833619,-500.0,0.00048373,7]
[354457101,1740517833628,-500.0,0.00048373,2]
[354457102,1740517833638,-500.10290801,0.00048373,7]
[354457103,1740517833648,-500.0,0.00048373,2]
[354457104,1740517833657,-500.0,0.00048373,10]
[354457105,1740517833667,-500.0,0.00048373,10]
[354457106,1740517833677,-500.0,0.00048373,10]
[354457107,1740517833686,-500.0,0.00048373,10]
[354457108,1740517833695,-500.51026839,0.00048373,10]
[354457109,1740517833705,-500.0,0.00048373,10]
[354457110,1740517833714,-500.0,0.00048373,10]
[354457111,1740517833724,-600.0,0.00048378,74]
[354457112,1740517833733,-309.9907803,0.0004839,4]
[354457113,1740517833743,-308.83793449,0.00048392,31]
[354457114,1740517833752,-335.12352978,0.00048392,120]
[354457115,1740517833762,-500.0,0.00048392,2]
[354457116,1740517833772,-500.0,0.00048392,120]
[354457117,1740517833781,-500.0,0.00048392,120]
[354457118,1740517833795,-500.0,0.00048392,2]
[354457119,1740517833813,-500.0,0.00048392,120]
[354457120,1740517833823,-500.0,0.00048392,120]
[354457121,1740517833833,-500.0,0.00048392,2]
[354457122,1740517833845,-500.0,0.00048392,2]
[354457123,1740517833856,-500.0,0.00048392,120]
[354457124,1740517833867,-500.0,0.00048392,120]
[354457125,1740517833877,-500.0,0.00048392,2]
[354457126,1740517833887,-264.97120917,0.00048392,120]
[354457127,1740517833896,-500.0,0.00048392,2]
[354457128,1740517833906,-500.0,0.00048392,2]
[354457129,1740517833916,-99404.64327026,0.00048396,30]
[354457130,1740517833925,-500.0,0.00048399,18]
[354457131,1740517833935,-500.0,0.00048399,18]
[354457132,1740517833945,-500.0,0.00048399,120]
[354457133,1740517833955,-500.0,0.00048399,120]
[354457134,1740517833965,-500.0,0.00048399,120]
[354457135,1740517833975,-163.71318596,0.00048399,120]
[354457136,1740517833984,-500.0,0.00048399,31]
[354457137,1740517833994,-500.0,0.00048399,120]
[354457138,1740517834003,-422.51505376,0.00048399,120]
[354457139,1740517834013,-500.0,0.00048399,120]
[354457140,1740517834023,-500.0,0.00048399,120]
[354457141,1740517834032,-500.0,0.00048399,31]
[354457142,1740517834042,-490.5393708,0.00048399,31]
[354457143,1740517834051,-500.0,0.00048399,120]
[354457144,1740517834061,-500.0,0.00048399,31]
[354457145,1740517834071,-285.67218724,0.00048399,120]
[354457146,1740517834089,-500.0,0.00048399,120]
[354457147,1740517834100,-500.0,0.00048399,120]
[354457148,1740517834110,-500.0,0.00048399,120]
[354457149,1740517834119,-600.0,0.00048399,120]
[354457150,1740517834129,-44108.55681635,0.000484,120]
[354457151,1740517834142,-3944.89993452,0.000484,120]
[354457169,1740517838328,-185.0,0.00048,90]
[354457170,1740517838338,-500.0,0.00048392,2]
[354457171,1740517838349,-620.13550889,0.00048392,2]
[354457172,1740517838358,-86811.0499091,0.000484,120]
[354457173,1740517838370,-3987.57932694,0.000484,120]
[354457216,1740517840304,-41557.35066697,0.000484,120]
[354457243,1740517840574,-16112.61340673,0.000484,120]
[354457292,1740518489709,500.0,0.000274,120]
[354457293,1740518529146,500.0,0.00028,120]
[354457294,1740518556794,800.0,0.00028,120]
[354457295,1740518655412,800.0,0.00028,120]
[354457296,1740518729594,385.0,0.00028,120]
[354457298,1740518813464,4645.73339042,0.00028,10]
[354457364,1740519032986,-500.0,0.000284,120]
[354457365,1740519032997,-500.0,0.000294,120]
[354457366,1740519033007,-500.0,0.0003,120]
[354457367,1740519033017,-159.599696,0.00033766,37]
[354457368,1740519033028,-291.92039377,0.00039047,114]
[354457369,1740519033038,-300.0,0.00039146,5]
[354457370,1740519033047,-538.0,0.00039147,2]
[354457371,1740519033058,-1964.0,0.00039147,2]
[354457372,1740519033069,-630.466,0.00039147,2]
[354457373,1740519033079,-396.0,0.00039147,2]
[354457374,1740519033089,-150.0,0.00039147,2]
[354457376,1740519033099,-500.0,0.0004,120]
[354457378,1740519033111,-3676.27621756,0.00041037,14]
[354457380,1740519033121,-152.0,0.00041993,2]
[354457382,1740519033131,-500.0,0.00042,120]
[354457384,1740519033141,-1964.0,0.00042147,2]
[354457386,1740519033152,-396.0,0.00042147,2]
[354457388,1740519033163,-206.50070195,0.000429,9]
[354457390,1740519033173,-24900.0,0.00043814,2]
[354457392,1740519033184,-500.0,0.00044,120]
[354457394,1740519033195,-170.24056423,0.000446,28]
[354457396,1740519033206,-1964.0,0.00045147,2]
[354457398,1740519033218,-396.0,0.00045147,2]
[354457400,1740519033228,-159.599696,0.00045984,103]
[354457402,1740519033239,-186.2028385,0.00047424,4]
[354457404,1740519033249,-156.00594704,0.00047781,120]
[354457406,1740519033261,-1184.868432,0.000478,103]
[354457408,1740519033271,-1000.0,0.000479,103]
[354457410,1740519033281,-1298.265543,0.000479,103]
[354457412,1740519033291,-318.66250715,0.00047999,8]
[354457414,1740519033300,-800.0,0.00048,120]
[354457416,1740519033310,-345.06829247,0.00048,120]
[354457418,1740519033320,-1000.0,0.00048,104]
[354457420,1740519033330,-1000.0,0.00048,104]
[354457422,1740519033340,-151.0,0.00048,90]
[354457424,1740519033349,-186.0,0.00048,90]
[354457426,1740519033360,-156.00594704,0.00048027,120]
[354457428,1740519033370,-1000.0,0.000481,105]
[354457430,1740519033379,-1000.0,0.000481,105]
[354457432,1740519033389,-463.993,0.00048147,2]
[354457434,1740519033398,-396.0,0.00048147,2]
[354457436,1740519033408,-1000.0,0.000482,106]
[354457438,1740519033418,-1000.0,0.000482,106]
[354457440,1740519033428,-1000.0,0.000483,107]
[354457442,1740519033438,-1000.0,0.000483,107]
[354457444,1740519033448,-195.52203659,0.000483,2]
[354457446,1740519033457,-661.81834305,0.000483,120]
[354457448,1740519033467,-661.6,0.000483,120]
[354457450,1740519033476,-661.6,0.000483,120]
[354457452,1740519033486,-156.00594704,0.00048301,120]
[354457454,1740519033495,-151.0,0.00048391,2]
[354457456,1740519033508,-500.0,0.00048399,18]
[354457458,1740519033518,-500.0,0.00048399,18]
[354457460,1740519033528,-513.34838988,0.00048399,2]
[354457462,1740519033538,-196.10791213,0.00048399,120]
[354457464,1740519033548,-376.552,0.00048399,83]
[354457466,1740519033557,-500.0,0.00048399,120]
[354457468,1740519033567,-500.0,0.00048399,120]
[354457469,1740519033576,-500.0,0.00048399,120]
[354457470,1740519033586,-236.76145567,0.00048399,120]
[354457471,1740519033597,-500.0,0.00048399,120]
[354457472,1740519033608,-389.25557346,0.00048399,120]
[354457473,1740519033619,-500.0,0.00048399,120]
[354457474,1740519033631,-500.0,0.00048399,120]
[354457475,1740519033642,-500.0,0.00048399,120]
[354457476,1740519033651,-424.11136412,0.00048399,120]
[354457478,1740519033661,-500.0,0.00048399,120]
[354457479,1740519033671,-500.0,0.00048399,120]
[354457481,1740519033681,-500.0,0.00048399,120]
[354457483,1740519033692,-500.0,0.00048399,120]
[354457484,1740519033701,-500.0,0.00048399,120]
[354457486,1740519033711,-500.0,0.00048399,120]
[354457488,1740519033721,-500.0,0.00048399,120]
[354457490,1740519033731,-346.18515592,0.00048399,120]
[354457492,1740519033741,-500.0,0.00048399,120]
[354457494,1740519033750,-500.0,0.00048399,120]
[354457495,1740519033760,-500.0,0.00048399,120]
[354457497,1740519033769,-500.0,0.00048399,120]
[354457499,1740519033778,-500.0,0.00048399,120]
[354457500,1740519033788,-500.0,0.00048399,120]
[354457502,1740519033797,-500.0,0.00048399,120]
[354457503,1740519033807,-21174.14,0.00048399,120]
[354457504,1740519033817,-300473.56973194,0.000484,120]
[354457505,1740519033830,-27930.47669083,0.000484,120]
[354457506,1740519033848,-778.40499493,0.000484,120]
[354457513,1740519038598,-2317.4062475,0.00037215,2]
[354457514,1740519038611,-623.0,0.000447,30]
[354457515,1740519038621,-186.0,0.00048,90]
[354457516,1740519038632,-661.6,0.000483,120]
[354457517,1740519038643,-6897.35359283,0.000484,120]
[354457518,1740519038653,-12021.35,0.000484,30]
[354457519,1740519038662,-32167.38228597,0.000484,120]
[354458010,1740519048003,-151.0,0.00048398,2]
[354458011,1740519048014,-17832.61771303,0.000484,120]
[354458012,1740519048024,-150.3,0.000484,120]
[354458013,1740519048034,-150.3,0.000484,120]
[354458014,1740519048044,-199.4,0.000484,120]
[354458015,1740519048054,-500.0,0.000484,120]
[354458016,1740519048064,-1000.0,0.000484,107]
[354458017,1740519048076,-721.2885,0.000484,30]
[354458018,1740519048085,-1000.0,0.000485,108]
[354458019,1740519048095,-156.00594704,0.00048548,120]
[354458020,1740519048106,-246.96834135,0.00048548,2]
[354458021,1740519048117,-311.2125375,0.00048587,30]
[354458022,1740519048128,-1000.0,0.000486,109]
[354458023,1740519048138,-1000.0,0.000487,110]
[354458024,1740519048153,-156.00594704,0.00048795,120]
[354458025,1740519048163,-1000.0,0.000488,111]
[354458026,1740519048173,-1000.0,0.000489,111]
[354458027,1740519048184,-5455.0,0.00049,120]
[354458028,1740519048194,-151.0,0.00049,22]
[354458029,1740519048205,-1000.0,0.00049,112]
[354458030,1740519048215,-156.00594704,0.00049068,120]
[354458031,1740519048226,-151.0,0.000491,28]
[354458032,1740519048236,-151.0,0.000492,26]
[354458033,1740519048246,-1058.77727821,0.00049215,30]
[354458034,1740519048257,-4318.6310271,0.00049215,2]
[354458035,1740519048267,-3000.0,0.00049215,2]
[354458036,1740519048277,-355.4206398,0.00049245,30]
[354458037,1740519048288,-355.4206398,0.00049245,30]
[354458038,1740519048298,-355.4206398,0.00049245,30]
[354458039,1740519048309,-355.4206398,0.00049245,30]
[354458040,1740519048319,-355.4206398,0.00049245,30]
[354458041,1740519048329,-355.4206398,0.00049245,30]
[354458042,1740519048340,-355.4206398,0.00049245,30]
[354458043,1740519048350,-355.4206398,0.00049245,30]
[354458044,1740519048360,-355.4206398,0.00049245,30]
[354458045,1740519048370,-183.1477002,0.00049245,30]
[354458046,1740519048380,-500.0,0.00049314,120]
[354458047,1740519048390,-500.0,0.00049314,120]
[354458048,1740519048401,-500.0,0.00049314,120]
[354458049,1740519048412,-495.76053763,0.00049314,120]
[354458050,1740519048423,-500.0,0.00049314,31]
[354458051,1740519048433,-500.0,0.00049314,120]
[354458052,1740519048443,-500.0,0.00049314,31]
[354458053,1740519048453,-393.37755956,0.00049314,31]
[354458054,1740519048463,-319.97053106,0.00049314,120]
[354458055,1740519048473,-500.0,0.00049314,120]
[354458056,1740519048483,-500.0,0.00049314,120]
[354458057,1740519048493,-500.0,0.00049314,120]
[354458058,1740519048503,-500.0,0.00049314,120]
[354458059,1740519048514,-400.0,0.00049314,120]
[354458060,1740519048524,-500.0,0.00049314,120]
[354458061,1740519048534,-500.0,0.00049314,120]
[354458062,1740519048544,-500.0,0.00049314,120]
[354458063,1740519048554,-500.0,0.00049314,120]
[354458064,1740519048563,-500.0,0.00049314,120]
[354458065,1740519048573,-194.99912257,0.00049314,120]
[354458066,1740519048583,-9084.55476614,0.00049315,5]
[354458067,1740519048592,-13944.4203368,0.00049315,5]
[354458068,1740519048605,-500.0,0.00049315,120]
[354458069,1740519048617,-500.51651012,0.00049315,120]
[354458070,1740519048626,-500.42196014,0.00049315,120]
[354458071,1740519048636,-500.0,0.00049315,120]
[354458072,1740519048646,-500.0,0.00049315,120]
[354458073,1740519048656,-500.0,0.00049315,120]
[354458074,1740519048666,-500.0,0.00049315,120]
[354458075,1740519048676,-501.1759548,0.00049315,120]
[354458076,1740519048688,-501.9767771,0.00049315,120]
[354458077,1740519048698,-500.0,0.00049315,120]
[354458078,1740519048708,-500.0,0.00049315,120]
[354458079,1740519048718,-500.0,0.00049315,120]
[354458080,1740519048727,-500.0,0.00049315,120]
[354458081,1740519048737,-501.89600203,0.00049315,120]
[354458082,1740519048747,-500.0,0.00049315,120]
[354458083,1740519048758,-500.0,0.00049315,120]
[354458084,1740519048769,-500.0,0.00049315,120]
[354458085,1740519048784,-500.0,0.00049315,120]
[354458086,1740519048794,-500.0,0.00049315,120]
[354458087,1740519048808,-500.0,0.00049315,120]
[354458088,1740519048819,-500.0,0.00049315,120]
[354458089,1740519048829,-501.92752829,0.00049315,120]
[354458090,1740519048839,-500.0,0.00049315,120]
[354458091,1740519048849,-500.0,0.00049315,120]
[354458092,1740519048859,-500.0,0.00049315,120]
[354458093,1740519048869,-500.0,0.00049315,120]
[354458094,1740519048879,-505.88266239,0.00049315,120]
[354458095,1740519048889,-500.0,0.00049315,120]
[354458096,1740519048900,-500.0,0.00049315,120]
[354458097,1740519048910,-500.0,0.00049315,120]
[354458098,1740519048920,-500.0,0.00049315,120]
[354458099,1740519048929,-500.0,0.00049315,120]
[354458100,1740519048939,-500.0,0.00049315,120]
[354458101,1740519048949,-500.0,0.00049315,120]
[354458102,1740519048959,-500.0,0.00049315,120]
[354458103,1740519048968,-500.0,0.00049315,120]
[354458104,1740519048978,-500.0,0.00049315,30]
[354458105,1740519048988,-500.0,0.00049315,120]
[354458106,1740519048998,-500.0,0.00049315,120]
[354458107,1740519049008,-500.0,0.00049315,120]
[354458108,1740519049019,-1412.39,0.00049315,120]
[354458110,1740519049028,-500.0,0.00049315,120]
[354458112,1740519049039,-500.0,0.00049315,120]
[354458114,1740519049048,-500.0,0.00049315,120]
[354458116,1740519049058,-502.1553688,0.00049315,120]
[354458118,1740519049068,-500.0,0.00049315,120]
[354458120,1740519049082,-500.0,0.00049315,120]
[354458122,1740519049091,-500.0,0.00049315,120]
[354458125,1740519049102,-500.0,0.00049315,120]
[354458127,1740519049111,-328.62851776,0.00049315,120]
[354458128,1740519049121,-1573.02,0.00049315,120]
[354458130,1740519049131,-500.0,0.00049315,120]
[354458133,1740519049141,-500.0,0.00049315,120]
[354458134,1740519049152,-500.0,0.00049315,120]
[354458137,1740519049162,-500.0,0.00049315,120]
[354458138,1740519049171,-500.0,0.00049315,120]
[354458140,1740519049181,-500.0,0.00049315,120]
[354458142,1740519049190,-500.0,0.00049315,120]
[354458144,1740519049200,-500.0,0.00049315,120]
[354458145,1740519049210,-479.20830133,0.00049315,120]
[354458146,1740519049219,-876.92,0.00049315,120]
[354458147,1740519049229,-500.0,0.00049315,120]
[354458148,1740519049239,-925.21,0.00049315,120]
[354458149,1740519049249,-660.53,0.00049315,120]
[354458150,1740519049260,-500.0,0.00049315,120]
[354458151,1740519049270,-500.0,0.00049315,120]
[354458152,1740519049280,-500.0,0.00049315,120]
[354458153,1740519049290,-500.0,0.00049315,120]
[354458154,1740519049300,-500.0,0.00049315,120]
[354458155,1740519049311,-500.0,0.00049315,120]
[354458156,1740519049321,-505.14126305,0.00049315,120]
[354458157,1740519049331,-500.0,0.00049315,120]
[354458158,1740519049341,-795.52,0.00049315,120]
[354458159,1740519049351,-500.0,0.00049315,120]
[354458160,1740519049362,-532.56455688,0.00049315,120]
[354458161,1740519049372,-500.0,0.00049315,120]
[354458162,1740519049382,-500.0,0.00049315,120]
[354458163,1740519049393,-500.0,0.00049315,120]
[354458164,1740519049404,-500.0,0.00049315,120]
[354458165,1740519049414,-500.0,0.00049315,30]
[354458166,1740519049424,-500.0,0.00049315,120]
[354458167,1740519049434,-500.0,0.00049315,120]
[354458168,1740519049443,-500.0,0.00049315,120]
[354458169,1740519049455,-500.0,0.00049315,120]
[354458170,1740519049466,-500.0,0.00049315,120]
[354458171,1740519049476,-500.0,0.00049315,120]
[354458172,1740519049485,-500.42613407,0.00049315,120]
[354458173,1740519049495,-500.0,0.00049315,120]
[354458174,1740519049504,-1269.6,0.00049315,120]
[354458175,1740519049514,-500.0,0.00049315,120]
[354458176,1740519049523,-500.31723078,0.00049315,120]
[354458177,1740519049533,-500.0,0.00049315,120]
[354458178,1740519049543,-500.0,0.00049315,120]
[354458179,1740519049552,-502.30564331,0.00049315,120]
[354458180,1740519049562,-500.0,0.00049315,120]
[354458181,1740519049571,-500.0,0.00049315,120]
[354458182,1740519049581,-500.0,0.00049315,120]
[354458183,1740519049591,-500.0,0.00049315,120]
[354458184,1740519049601,-501.42888981,0.00049315,120]
[354458185,1740519049616,-500.0,0.00049315,120]
[354458186,1740519049625,-500.0,0.00049315,120]
[354458187,1740519049635,-545.88,0.00049315,120]
[354458188,1740519049645,-500.0,0.00049315,120]
[354458189,1740519049656,-500.0,0.00049315,120]
[354458190,1740519049665,-500.0,0.00049315,120]
[354458191,1740519049674,-562.39,0.00049315,120]
[354458192,1740519049684,-1658.65,0.00049315,120]
[354458193,1740519049694,-433.01156394,0.00049315,120]
[354458194,1740519049704,-500.0,0.00049315,120]
[354458195,1740519049713,-500.0,0.00049315,120]
[354458196,1740519049722,-500.0,0.00049315,120]
[354458197,1740519049732,-500.0,0.00049315,120]
[354458198,1740519049741,-500.0,0.00049315,120]
[354458199,1740519049750,-500.0,0.00049315,120]
[354458200,1740519049760,-511.14,0.00049315,120]
[354458201,1740519049769,-500.0,0.00049315,120]
[354458202,1740519049778,-500.0,0.00049315,120]
[354458203,1740519049788,-455.31173304,0.00049315,120]
[354458204,1740519049799,-500.0,0.00049315,120]
[354458205,1740519049808,-500.0,0.00049315,120]
[354458206,1740519049817,-213.00970695,0.00049315,120]
[354458207,1740519049826,-500.0,0.00049315,120]
[354458208,1740519049835,-500.0,0.00049315,120]
[354458209,1740519049844,-500.0,0.00049315,120]
[354458210,1740519049853,-500.0,0.00049315,120]
[354458211,1740519049863,-3546.38,0.00049315,120]
[354458212,1740519049872,-712.2,0.00049315,120]
[354458213,1740519049881,-500.0,0.00049315,120]
[354458214,1740519049890,-506.36715588,0.00049315,120]
[354458215,1740519049900,-500.0,0.00049315,120]
[354458216,1740519049909,-158.74620652,0.00049315,120]
[354458217,1740519049918,-500.0,0.00049315,120]
[354458218,1740519049927,-500.0,0.00049315,120]
[354458219,1740519049936,-500.0,0.00049315,120]
[354458220,1740519049945,-500.0,0.00049315,120]
[354458221,1740519049954,-578.17715789,0.00049315,120]
[354458222,1740519049963,-500.0,0.00049315,120]
[354458223,1740519049972,-500.0,0.00049315,120]
[354458224,1740519049981,-500.80539892,0.00049315,120]
[354458225,1740519049989,-500.0,0.00049315,120]
[354458226,1740519049999,-500.0,0.00049315,120]
[354458227,1740519050008,-500.0,0.00049315,120]
[354458228,1740519050017,-500.0,0.00049315,120]
[354458229,1740519050150,-500.0,0.00049315,120]
[354458230,1740519050161,-500.0,0.00049315,120]
[354458231,1740519050171,-500.0,0.00049315,120]
[354458232,1740519050181,-500.0,0.00049315,120]
[354458233,1740519050191,-500.0,0.00049315,120]
[354458234,1740519050201,-631.5602834,0.00049315,120]
[354458235,1740519050211,-500.0,0.00049315,120]
[354458236,1740519050220,-500.0,0.00049315,120]
[354458237,1740519050230,-500.0,0.00049315,120]
[354458238,1740519050239,-500.0,0.00049315,120]
[354458239,1740519050248,-500.0,0.00049315,7]
[354458240,1740519050258,-500.0,0.00049315,120]
[354458241,1740519050268,-500.0,0.00049315,120]
[354458242,1740519050277,-500.0,0.00049315,120]
[354458243,1740519050286,-500.0,0.00049315,120]
[354458244,1740519050296,-500.0,0.00049315,120]
[354458245,1740519050305,-500.0,0.00049315,120]
[354458246,1740519050314,-500.0,0.00049315,120]
[354458247,1740519050324,-500.0,0.00049315,120]
[354458248,1740519050333,-565.51286189,0.00049315,120]
[354458249,1740519050343,-500.0,0.00049315,120]
[354458250,1740519050352,-163.52740041,0.00049315,10]
[354458251,1740519050362,-500.0,0.00049315,120]
[354458252,1740519050371,-500.0,0.00049315,120]
[354458253,1740519050380,-500.0,0.00049315,120]
[354458254,1740519050390,-500.0,0.00049315,120]
[354458255,1740519050400,-500.0,0.00049315,120]
[354458256,1740519050410,-500.0,0.00049315,2]
[354458257,1740519050419,-500.0,0.00049315,2]
[354458258,1740519050429,-157.16964596,0.00049315,2]
[354458259,1740519050438,-500.0,0.00049315,120]
[354458260,1740519050447,-1235.61,0.00049315,120]
[354458261,1740519050456,-500.0,0.00049315,120]
[354458262,1740519050466,-500.0,0.00049315,120]
[354458263,1740519050475,-500.0,0.00049315,120]
[354458264,1740519050484,-500.0,0.00049315,120]
[354458265,1740519050494,-500.0,0.00049315,120]
[354458266,1740519050503,-596.01,0.00049315,120]
[354458267,1740519050513,-500.0,0.00049315,120]
[354458268,1740519050522,-500.0,0.00049315,120]
[354458269,1740519050531,-501.06205549,0.00049315,120]
[354458270,1740519050541,-500.0,0.00049315,120]
[354458271,1740519050550,-500.0,0.00049315,120]
[354458272,1740519050560,-500.0,0.00049315,120]
[354458273,1740519050569,-500.0,0.00049315,120]
[354458274,1740519050579,-500.0,0.00049315,120]
[354458275,1740519050588,-500.0,0.00049315,120]
[354458276,1740519050598,-598.31,0.00049315,120]
[354458277,1740519050607,-339.21008565,0.00049315,120]
[354458278,1740519050621,-500.0,0.00049315,120]
[354458279,1740519050630,-500.0,0.00049315,120]
[354458280,1740519050640,-572.41,0.00049315,120]
[354458281,1740519050651,-500.0,0.00049315,120]
[354458282,1740519050662,-503.36723565,0.00049315,120]
[354458283,1740519050671,-500.0,0.00049315,120]
[354458284,1740519050681,-501.01034301,0.00049315,120]
[354458285,1740519050690,-500.0,0.00049315,2]
[354458286,1740519050700,-500.0,0.00049315,120]
[354458287,1740519050710,-500.0,0.00049315,120]
[354458288,1740519050719,-500.0,0.00049315,120]
[354458289,1740519050728,-500.23486794,0.00049315,120]
[354458290,1740519050737,-500.0,0.00049315,120]
[354458291,1740519050746,-693.13,0.00049315,120]
[354458292,1740519050756,-500.0,0.00049315,120]
[354458293,1740519050765,-508.02654153,0.00049315,120]
[354458294,1740519050775,-500.0,0.00049315,120]
[354458295,1740519050784,-500.0,0.00049315,120]
[354458296,1740519050794,-322.49904055,0.00049315,120]
[354458297,1740519050804,-500.0,0.00049315,120]
[354458298,1740519050813,-500.0,0.00049315,120]
[354458299,1740519050823,-500.0,0.00049315,120]
[354458300,1740519050833,-500.0,0.00049315,120]
[354458301,1740519050842,-502.69264285,0.00049315,120]
[354458302,1740519050851,-500.0,0.00049315,120]
[354458303,1740519050860,-500.0,0.00049315,120]
[354458304,1740519050869,-500.0,0.00049315,120]
[354458305,1740519050879,-500.0,0.00049315,120]
[354458306,1740519050889,-500.0,0.00049315,120]
[354458307,1740519050898,-500.0,0.00049315,120]
[354458308,1740519050907,-500.0,0.00049315,120]
[354458309,1740519050917,-500.0,0.00049315,120]
[354458310,1740519050927,-503.14613345,0.00049315,120]
[354458311,1740519050937,-500.0,0.00049315,120]
[354458312,1740519050947,-500.0,0.00049315,120]
[354458313,1740519050956,-500.0,0.00049315,120]
[354458314,1740519050966,-500.0,0.00049315,120]
[354458315,1740519050976,-501.76440804,0.00049315,120]
[354458316,1740519050985,-500.0,0.00049315,120]
[354458317,1740519050995,-500.0,0.00049315,120]
[354458318,1740519051004,-500.0,0.00049315,120]
[354458319,1740519051013,-503.40568368,0.00049315,120]
[354458320,1740519051022,-500.0,0.00049315,120]
[354458321,1740519051030,-500.0,0.00049315,120]
[354458322,1740519051039,-500.0,0.00049315,120]
[354458323,1740519051047,-500.0,0.00049315,120]
[354458324,1740519051056,-500.0,0.00049315,120]
[354458325,1740519051065,-500.0,0.00049315,120]
[354458326,1740519051074,-500.0,0.00049315,120]
[354458327,1740519051083,-500.0,0.00049315,120]
[354458328,1740519051091,-500.0,0.00049315,120]
[354458329,1740519051100,-500.0,0.00049315,120]
[354458330,1740519051109,-500.0,0.00049315,120]
[354458331,1740519051119,-500.0,0.00049315,120]
[354458332,1740519051129,-500.0,0.00049315,120]
[354458333,1740519051138,-500.0,0.00049315,120]
[354458334,1740519051148,-1778.47,0.00049315,120]
[354458335,1740519051158,-503.41060773,0.00049315,120]
[354458336,1740519051167,-500.0,0.00049315,120]
[354458337,1740519051176,-500.0,0.00049315,120]
[354458338,1740519051185,-500.0,0.00049315,120]
[354458339,1740519051194,-500.0,0.00049315,120]
[354458340,1740519051203,-500.0,0.00049315,120]
[354458341,1740519051214,-500.0,0.00049315,120]
[354458342,1740519051223,-500.0,0.00049315,120]